[Event "Titled Tuesday Blitz March 29 Early 2022"]
[White "Lewicki, Miroslaw"]
[Black "Kejzar, Petra"]
[WhiteFideId "1113380"]
[BlackFideId "14610213"]
[WhiteElo "2283"]
[BlackElo "2003"]
[Result "1-0"]
[Round "01"]
[TimeControl "180+1"]
[Date "2022.03.30"]
[WhiteClock "0:01:42"]
[BlackClock "0:00:02"]

1. f3 {[%clk 0:02:46]}  e5 {[%clk 0:02:56]} 2. Kf2 {[%clk 0:02:47]}  d5 {[%clk 0:02:53]} 3. g3 {[%clk 0:02:47]}  Nf6 {[%clk 0:02:51]} 4. Kg2 {[%clk 0:02:47]}  Bd6 {[%clk 0:02:50]} 5. b3 {[%clk 0:02:48]}  Nc6 {[%clk 0:02:49]} 6. Bb2 {[%clk 0:02:48]}  h5 {[%clk 0:02:46]} 7. h4 {[%clk 0:02:40]}  Bf5 {[%clk 0:02:35]} 8. d3 {[%clk 0:02:40]}  Qd7 {[%clk 0:02:32]} 9. e4 {[%clk 0:02:40]}  dxe4 {[%clk 0:02:29]} 10. dxe4 {[%clk 0:02:40]}  Be6 {[%clk 0:02:28]} 11. Nc3 {[%clk 0:02:40]}  O-O-O {[%clk 0:02:22]} 12. Nh3 {[%clk 0:02:40]}  Bxh3+ {[%clk 0:02:08]} 13. Rxh3 {[%clk 0:02:39]}  Rdg8 {[%clk 0:02:08]} 14. Nd5 {[%clk 0:02:32]}  Nxd5 {[%clk 0:02:00]} 15. Qxd5 {[%clk 0:02:33]}  g5 {[%clk 0:01:54]} 16. Bc4 {[%clk 0:02:31]}  Rg7 {[%clk 0:01:42]} 17. hxg5 {[%clk 0:02:30]}  Nb4 {[%clk 0:01:28]} 18. Qa5 {[%clk 0:02:29]}  Kb8 {[%clk 0:01:16]} 19. Bxe5 {[%clk 0:02:26]}  Bxe5 {[%clk 0:01:06]} 20. Qxe5 {[%clk 0:02:24]}  Rhg8 {[%clk 0:00:52]} 21. Rxh5 {[%clk 0:02:21]}  Qd2+ {[%clk 0:00:29]} 22. Kh1 {[%clk 0:02:15]}  Qe3 {[%clk 0:00:17]} 23. Rf1 {[%clk 0:02:13]}  b6 {[%clk 0:00:13]} 24. Qf4 {[%clk 0:02:06]}  Qd4 {[%clk 0:00:11]} 25. e5 {[%clk 0:02:05]}  Nxc2 {[%clk 0:00:10]} 26. Qxd4 {[%clk 0:02:04]}  Nxd4 {[%clk 0:00:11]} 27. f4 {[%clk 0:02:05]}  b5 {[%clk 0:00:10]} 28. Bd5 {[%clk 0:02:04]}  c6 {[%clk 0:00:09]} 29. Be4 {[%clk 0:02:04]}  Kb7 {[%clk 0:00:10]} 30. Rd1 {[%clk 0:02:03]}  Ne2 {[%clk 0:00:09]} 31. Kg2 {[%clk 0:02:00]}  Nc3 {[%clk 0:00:08]} 32. Rd7+ {[%clk 0:02:00]}  Kb6 {[%clk 0:00:07]} 33. Bf3 {[%clk 0:01:58]}  Nxa2 {[%clk 0:00:06]} 34. f5 {[%clk 0:01:55]}  Nc1 {[%clk 0:00:07]} 35. f6 {[%clk 0:01:51]}  Rxg5 {[%clk 0:00:06]} 36. Rxg5 {[%clk 0:01:50]}  Rxg5 {[%clk 0:00:07]} 37. Rxf7 {[%clk 0:01:47]}  Nxb3 {[%clk 0:00:07]} 38. Re7 {[%clk 0:01:44]}  a5 {[%clk 0:00:06]} 39. f7 {[%clk 0:01:44]}  Rf5 {[%clk 0:00:06]} 40. Be4 {[%clk 0:01:44]}  Rxf7 {[%clk 0:00:02]} 41. Rxf7 {[%clk 0:01:44]}  a4 {[%clk 0:00:03]} 42. e6 {[%clk 0:01:41]}  a3 {[%clk 0:00:03]} 43. Bb1 {[%clk 0:01:41]}  Nd2 {[%clk 0:00:02]} 44. Ba2 {[%clk 0:01:42]} 1-0


[Site "https://www.chess.com"]

[Event "Titled Tuesday Blitz March 29 Early 2022"]
[White "Martin Duque, Jesus"]
[Black "Sarana, Alexey"]
[WhiteFideId "2208954"]
[BlackFideId "24133795"]
[WhiteElo "2243"]
[BlackElo "2666"]
[Result "0-1"]
[Round "01"]
[TimeControl "180+1"]
[Date "2022.03.29"]
[WhiteClock "0:00:02"]
[BlackClock "0:00:25"]

1. Nf3 {[%clk 0:02:56]}  d5 {[%clk 0:02:59]} 2. b3 {[%clk 0:02:57]}  Bf5 {[%clk 0:02:58]} 3. Bb2 {[%clk 0:02:54]}  Nf6 {[%clk 0:02:58]} 4. g3 {[%clk 0:02:54]}  h6 {[%clk 0:02:55]} 5. Bg2 {[%clk 0:02:54]}  e6 {[%clk 0:02:56]} 6. d3 {[%clk 0:02:54]}  Be7 {[%clk 0:02:50]} 7. Nbd2 {[%clk 0:02:54]}  Bh7 {[%clk 0:02:48]} 8. O-O {[%clk 0:02:54]}  O-O {[%clk 0:02:49]} 9. Re1 {[%clk 0:02:53]}  c5 {[%clk 0:02:49]} 10. Ne5 {[%clk 0:02:45]}  a5 {[%clk 0:02:46]} 11. a4 {[%clk 0:02:45]}  Nfd7 {[%clk 0:02:47]} 12. e4 {[%clk 0:02:44]}  Nxe5 {[%clk 0:02:46]} 13. Bxe5 {[%clk 0:02:45]}  Nc6 {[%clk 0:02:47]} 14. Bb2 {[%clk 0:02:45]}  Nb4 {[%clk 0:02:26]} 15. exd5 {[%clk 0:02:35]}  exd5 {[%clk 0:02:26]} 16. Nf3 {[%clk 0:02:21]}  Bf6 {[%clk 0:02:26]} 17. Ne5 {[%clk 0:02:18]}  Re8 {[%clk 0:02:25]} 18. f4 {[%clk 0:02:07]}  Qd6 {[%clk 0:02:25]} 19. Rc1 {[%clk 0:01:58]}  Rad8 {[%clk 0:02:23]} 20. Qh5 {[%clk 0:01:58]}  Bg6 {[%clk 0:02:17]} 21. Qf3 {[%clk 0:01:46]}  Bf5 {[%clk 0:02:04]} 22. Qh5 {[%clk 0:01:40]}  Bg6 {[%clk 0:02:04]} 23. Qf3 {[%clk 0:01:40]}  Nc6 {[%clk 0:01:55]} 24. Nxc6 {[%clk 0:01:36]}  bxc6 {[%clk 0:01:56]} 25. Bxf6 {[%clk 0:01:33]}  Qxf6 {[%clk 0:01:57]} 26. Qf2 {[%clk 0:01:32]}  Qc3 {[%clk 0:01:51]} 27. Kf1 {[%clk 0:01:24]}  Bf5 {[%clk 0:01:47]} 28. h3 {[%clk 0:01:16]}  h5 {[%clk 0:01:47]} 29. Kg1 {[%clk 0:00:59]}  g6 {[%clk 0:01:35]} 30. Kf1 {[%clk 0:00:58]}  Kg7 {[%clk 0:01:35]} 31. Kg1 {[%clk 0:00:56]}  Rb8 {[%clk 0:01:19]} 32. Kf1 {[%clk 0:00:52]}  Bd7 {[%clk 0:01:17]} 33. Kg1 {[%clk 0:00:45]}  Be6 {[%clk 0:01:13]} 34. Kf1 {[%clk 0:00:44]}  Bf5 {[%clk 0:01:13]} 35. Kg1 {[%clk 0:00:43]}  Rxe1+ {[%clk 0:00:53]} 36. Qxe1 {[%clk 0:00:35]}  Qxe1+ {[%clk 0:00:47]} 37. Rxe1 {[%clk 0:00:36]}  Kf6 {[%clk 0:00:47]} 38. Kf2 {[%clk 0:00:34]}  Rb4 {[%clk 0:00:46]} 39. h4 {[%clk 0:00:34]}  c4 {[%clk 0:00:42]} 40. dxc4 {[%clk 0:00:34]}  dxc4 {[%clk 0:00:43]} 41. Bxc6 {[%clk 0:00:34]}  cxb3 {[%clk 0:00:43]} 42. cxb3 {[%clk 0:00:34]}  Rxb3 {[%clk 0:00:44]} 43. Re3 {[%clk 0:00:34]}  Rb2+ {[%clk 0:00:44]} 44. Re2 {[%clk 0:00:34]}  Rb4 {[%clk 0:00:45]} 45. Re5 {[%clk 0:00:26]}  Rb2+ {[%clk 0:00:42]} 46. Re2 {[%clk 0:00:26]}  Rb6 {[%clk 0:00:42]} 47. Be8 {[%clk 0:00:26]}  Bg4 {[%clk 0:00:38]} 48. Rc2 {[%clk 0:00:21]}  Rb3 {[%clk 0:00:37]} 49. Rc6+ {[%clk 0:00:19]}  Ke7 {[%clk 0:00:36]} 50. Bxf7 {[%clk 0:00:03]}  Kxf7 {[%clk 0:00:36]} 51. Rc5 {[%clk 0:00:02]}  Rb2+ {[%clk 0:00:33]} 52. Ke3 {[%clk 0:00:01]}  Rg2 {[%clk 0:00:33]} 53. Rxa5 {[%clk 0:00:02]}  Rxg3+ {[%clk 0:00:34]} 54. Ke4 {[%clk 0:00:03]}  Bf5+ {[%clk 0:00:35]} 55. Ke5 {[%clk 0:00:03]}  Re3+ {[%clk 0:00:35]} 56. Kd6 {[%clk 0:00:03]}  Re4 {[%clk 0:00:34]} 57. Ra7+ {[%clk 0:00:03]}  Kf6 {[%clk 0:00:35]} 58. a5 {[%clk 0:00:04]}  Rxf4 {[%clk 0:00:35]} 59. a6 {[%clk 0:00:04]}  Ra4 {[%clk 0:00:35]} 60. Ra8 {[%clk 0:00:04]}  Kg7 {[%clk 0:00:33]} 61. a7 {[%clk 0:00:03]}  Be4 {[%clk 0:00:31]} 62. Re8 {[%clk 0:00:03]}  Bh1 {[%clk 0:00:27]} 63. Re1 {[%clk 0:00:03]}  Ba8 {[%clk 0:00:27]} 64. Re7+ {[%clk 0:00:02]}  Kf6 {[%clk 0:00:27]} 65. Rc7 {[%clk 0:00:01]}  Rxh4 {[%clk 0:00:26]} 66. Kd7 {[%clk 0:00:02]}  Ra4 {[%clk 0:00:25]} 67. Kc8 {[%clk 0:00:03]}  h4 {[%clk 0:00:25]} 68. Kb8 {[%clk 0:00:03]}  Be4 {[%clk 0:00:25]} 69. Rc4 {[%clk 0:00:02]}  Rxc4 {[%clk 0:00:25]} 0-1


[Site "https://www.chess.com"]

[Event "Titled Tuesday Blitz March 29 Early 2022"]
[White "Matinian, Nikita"]
[Black "Lopez Gracia, Fernando"]
[WhiteFideId "24129100"]
[BlackFideId "2207184"]
[WhiteElo "2422"]
[BlackElo "2433"]
[Result "1-0"]
[Round "01"]
[TimeControl "180+1"]
[Date "2022.03.30"]
[WhiteClock "0:00:44"]
[BlackClock "0:00:09"]

1. e4 {[%clk 0:02:59]}  e5 {[%clk 0:02:59]} 2. Nf3 {[%clk 0:02:57]}  Nc6 {[%clk 0:02:59]} 3. Bb5 {[%clk 0:02:58]}  a6 {[%clk 0:02:59]} 4. Ba4 {[%clk 0:02:59]}  Nf6 {[%clk 0:02:59]} 5. d3 {[%clk 0:02:59]}  Bc5 {[%clk 0:02:59]} 6. c3 {[%clk 0:02:58]}  b5 {[%clk 0:02:59]} 7. Bb3 {[%clk 0:02:58]}  d6 {[%clk 0:02:59]} 8. Bg5 {[%clk 0:02:58]}  h6 {[%clk 0:02:58]} 9. Bh4 {[%clk 0:02:58]}  g5 {[%clk 0:02:54]} 10. Bg3 {[%clk 0:02:59]}  O-O {[%clk 0:02:52]} 11. Nbd2 {[%clk 0:02:56]}  Re8 {[%clk 0:02:45]} 12. O-O {[%clk 0:02:55]}  Bg4 {[%clk 0:02:42]} 13. Re1 {[%clk 0:02:54]}  Bb6 {[%clk 0:02:37]} 14. h3 {[%clk 0:02:53]}  Bh5 {[%clk 0:02:36]} 15. a4 {[%clk 0:02:31]}  Qd7 {[%clk 0:02:23]} 16. axb5 {[%clk 0:02:28]}  axb5 {[%clk 0:02:24]} 17. Rxa8 {[%clk 0:02:28]}  Rxa8 {[%clk 0:02:22]} 18. Qb1 {[%clk 0:02:18]}  Kh8 {[%clk 0:02:12]} 19. d4 {[%clk 0:02:10]}  exd4 {[%clk 0:02:02]} 20. e5 {[%clk 0:02:10]}  g4 {[%clk 0:01:50]} 21. Nxd4 {[%clk 0:01:20]}  Nxe5 {[%clk 0:01:07]} 22. Rxe5 {[%clk 0:01:19]}  gxh3 {[%clk 0:00:40]} 23. Re3 {[%clk 0:00:54]}  hxg2 {[%clk 0:00:34]} 24. Bh4 {[%clk 0:00:53]}  Ng4 {[%clk 0:00:31]} 25. Qe4 {[%clk 0:00:52]}  Rg8 {[%clk 0:00:24]} 26. Rg3 {[%clk 0:00:50]}  Ne5 {[%clk 0:00:19]} 27. Bf6+ {[%clk 0:00:47]}  Rg7 {[%clk 0:00:14]} 28. Rxg7 {[%clk 0:00:44]}  Bxd4 {[%clk 0:00:09]} 29. Qh7# {[%clk 0:00:44]} 1-0


[Site "https://www.chess.com"]

[Event "Titled Tuesday Blitz March 29 Early 2022"]
[White "Matsenko, Andrei"]
[Black "Shvedova, Alexandra"]
[WhiteFideId "24146501"]
[BlackFideId "54154782"]
[WhiteElo "2137"]
[BlackElo "1912"]
[Result "1-0"]
[Round "01"]
[TimeControl "180+1"]
[Date "2022.03.29"]
[WhiteClock "0:00:34"]
[BlackClock "0:00:09"]

1. e4 {[%clk 0:02:57]}  c5 {[%clk 0:02:59]} 2. Nf3 {[%clk 0:02:51]}  d6 {[%clk 0:02:59]} 3. d4 {[%clk 0:02:51]}  cxd4 {[%clk 0:03:00]} 4. Qxd4 {[%clk 0:02:52]}  Nf6 {[%clk 0:02:58]} 5. Nc3 {[%clk 0:02:52]}  Nc6 {[%clk 0:02:58]} 6. Bb5 {[%clk 0:02:52]}  Bd7 {[%clk 0:02:59]} 7. Bxc6 {[%clk 0:02:53]}  Bxc6 {[%clk 0:03:00]} 8. Bg5 {[%clk 0:02:54]}  e6 {[%clk 0:03:00]} 9. O-O-O {[%clk 0:02:54]}  Be7 {[%clk 0:03:01]} 10. Qd3 {[%clk 0:02:55]}  Qa5 {[%clk 0:02:33]} 11. Kb1 {[%clk 0:02:53]}  O-O {[%clk 0:02:31]} 12. h4 {[%clk 0:02:52]}  Rfd8 {[%clk 0:02:07]} 13. Nd4 {[%clk 0:02:49]}  Rac8 {[%clk 0:02:05]} 14. f4 {[%clk 0:02:46]}  Qc7 {[%clk 0:01:57]} 15. g4 {[%clk 0:02:44]}  Nxg4 {[%clk 0:01:51]} 16. Qg3 {[%clk 0:02:36]}  h5 {[%clk 0:01:46]} 17. Bxe7 {[%clk 0:02:32]}  Qxe7 {[%clk 0:01:47]} 18. f5 {[%clk 0:02:32]}  e5 {[%clk 0:01:33]} 19. Nf3 {[%clk 0:02:22]}  b5 {[%clk 0:01:30]} 20. Nh2 {[%clk 0:02:22]}  Nxh2 {[%clk 0:01:18]} 21. Rxh2 {[%clk 0:02:16]}  b4 {[%clk 0:01:14]} 22. Rg2 {[%clk 0:02:10]}  Qf6 {[%clk 0:01:12]} 23. Nd5 {[%clk 0:02:08]}  Bxd5 {[%clk 0:01:11]} 24. Rxd5 {[%clk 0:02:09]}  Rc4 {[%clk 0:01:06]} 25. Qd3 {[%clk 0:01:58]}  Rd4 {[%clk 0:01:03]} 26. Rxd4 {[%clk 0:01:58]}  exd4 {[%clk 0:01:04]} 27. Rg5 {[%clk 0:01:58]}  Qe5 {[%clk 0:00:48]} 28. b3 {[%clk 0:01:58]}  Rc8 {[%clk 0:00:46]} 29. Rxh5 {[%clk 0:01:45]}  Rc3 {[%clk 0:00:46]} 30. Qe2 {[%clk 0:01:29]}  d3 {[%clk 0:00:45]} 31. cxd3 {[%clk 0:01:30]}  Qf4 {[%clk 0:00:40]} 32. Qd1 {[%clk 0:01:23]}  Qe3 {[%clk 0:00:36]} 33. Rg5 {[%clk 0:00:48]}  Rxd3 {[%clk 0:00:33]} 34. Qc1 {[%clk 0:00:26]}  Qxc1+ {[%clk 0:00:21]} 35. Kxc1 {[%clk 0:00:27]}  Re3 {[%clk 0:00:21]} 36. f6 {[%clk 0:00:28]}  g6 {[%clk 0:00:18]} 37. h5 {[%clk 0:00:28]}  Rxe4 {[%clk 0:00:19]} 38. hxg6 {[%clk 0:00:28]}  fxg6 {[%clk 0:00:20]} 39. Rxg6+ {[%clk 0:00:29]}  Kf7 {[%clk 0:00:20]} 40. Rg7+ {[%clk 0:00:30]}  Kxf6 {[%clk 0:00:21]} 41. Rxa7 {[%clk 0:00:31]}  Ke6 {[%clk 0:00:21]} 42. Kc2 {[%clk 0:00:29]}  Kd5 {[%clk 0:00:22]} 43. Kd3 {[%clk 0:00:29]}  Rh4 {[%clk 0:00:22]} 44. Ra5+ {[%clk 0:00:30]}  Kc6 {[%clk 0:00:22]} 45. Ra6+ {[%clk 0:00:30]}  Kc5 {[%clk 0:00:22]} 46. Ra5+ {[%clk 0:00:30]}  Kb6 {[%clk 0:00:22]} 47. Rg5 {[%clk 0:00:30]}  Rh2 {[%clk 0:00:21]} 48. Kc4 {[%clk 0:00:31]}  Rh4+ {[%clk 0:00:20]} 49. Kd5 {[%clk 0:00:30]}  Rh2 {[%clk 0:00:20]} 50. Rg4 {[%clk 0:00:30]}  Rxa2 {[%clk 0:00:19]} 51. Rxb4+ {[%clk 0:00:30]}  Ka5 {[%clk 0:00:19]} 52. Rb8 {[%clk 0:00:30]}  Rd2+ {[%clk 0:00:15]} 53. Kc6 {[%clk 0:00:31]}  d5 {[%clk 0:00:13]} 54. b4+ {[%clk 0:00:31]}  Ka4 {[%clk 0:00:13]} 55. b5 {[%clk 0:00:32]}  d4 {[%clk 0:00:12]} 56. b6 {[%clk 0:00:32]}  d3 {[%clk 0:00:11]} 57. b7 {[%clk 0:00:33]}  Rc2+ {[%clk 0:00:11]} 58. Kd5 {[%clk 0:00:33]}  d2 {[%clk 0:00:07]} 59. Ra8+ {[%clk 0:00:33]}  Kb3 {[%clk 0:00:08]} 60. b8=Q+ {[%clk 0:00:34]}  Kc3 {[%clk 0:00:09]} 61. Ra3# {[%clk 0:00:34]} 1-0


[Site "https://www.chess.com"]

[Event "Titled Tuesday Blitz March 29 Early 2022"]
[White "Maung, Maung Kyaw Zaw Hein"]
[Black "Zakhartsov, Vladimir"]
[WhiteFideId "13001698"]
[BlackFideId "4145097"]
[WhiteElo "1785"]
[BlackElo "2433"]
[Result "0-1"]
[Round "01"]
[TimeControl "180+1"]
[Date "2022.03.30"]
[WhiteClock "0:00:17"]
[BlackClock "0:01:26"]

1. Nf3 {[%clk 0:02:59]}  Nf6 {[%clk 0:02:58]} 2. c4 {[%clk 0:02:59]}  e6 {[%clk 0:02:58]} 3. Nc3 {[%clk 0:02:58]}  d5 {[%clk 0:02:58]} 4. d4 {[%clk 0:02:58]}  Be7 {[%clk 0:02:56]} 5. Bg5 {[%clk 0:02:56]}  O-O {[%clk 0:02:54]} 6. e3 {[%clk 0:02:56]}  Nbd7 {[%clk 0:02:52]} 7. Bd3 {[%clk 0:02:54]}  dxc4 {[%clk 0:02:52]} 8. Bxc4 {[%clk 0:02:54]}  a6 {[%clk 0:02:53]} 9. O-O {[%clk 0:02:54]}  b5 {[%clk 0:02:53]} 10. Bd3 {[%clk 0:02:48]}  Bb7 {[%clk 0:02:44]} 11. a4 {[%clk 0:02:45]}  b4 {[%clk 0:02:40]} 12. Nb1 {[%clk 0:02:45]}  c5 {[%clk 0:02:38]} 13. Nbd2 {[%clk 0:02:45]}  h6 {[%clk 0:02:34]} 14. Bh4 {[%clk 0:02:42]}  cxd4 {[%clk 0:02:29]} 15. exd4 {[%clk 0:02:41]}  Nd5 {[%clk 0:02:27]} 16. Bg3 {[%clk 0:02:36]}  a5 {[%clk 0:02:19]} 17. Nc4 {[%clk 0:02:35]}  Rc8 {[%clk 0:02:17]} 18. Qe2 {[%clk 0:02:30]}  Ba6 {[%clk 0:02:10]} 19. Nfe5 {[%clk 0:02:20]}  N7f6 {[%clk 0:02:03]} 20. Kh1 {[%clk 0:02:10]}  Bb7 {[%clk 0:02:03]} 21. f4 {[%clk 0:02:06]}  Ra8 {[%clk 0:02:02]} 22. f5 {[%clk 0:02:05]}  exf5 {[%clk 0:02:02]} 23. Rxf5 {[%clk 0:02:03]}  Nb6 {[%clk 0:02:02]} 24. Raf1 {[%clk 0:01:51]}  Qxd4 {[%clk 0:01:42]} 25. Nxb6 {[%clk 0:01:47]}  Qxb6 {[%clk 0:01:42]} 26. Rxf6 {[%clk 0:01:32]}  Bxf6 {[%clk 0:01:41]} 27. Nd7 {[%clk 0:01:32]}  Qe6 {[%clk 0:01:41]} 28. Nxf6+ {[%clk 0:01:32]}  gxf6 {[%clk 0:01:41]} 29. Qh5 {[%clk 0:01:03]}  Qd5 {[%clk 0:01:36]} 30. Qg4+ {[%clk 0:01:00]}  Qg5 {[%clk 0:01:36]} 31. Qh3 {[%clk 0:00:57]}  Rad8 {[%clk 0:01:34]} 32. Bc2 {[%clk 0:00:49]}  Rd2 {[%clk 0:01:32]} 33. Bf4 {[%clk 0:00:16]}  Bxg2+ {[%clk 0:01:28]} 34. Kg1 {[%clk 0:00:16]}  Bxh3+ {[%clk 0:01:28]} 35. Bxg5 {[%clk 0:00:17]}  fxg5 {[%clk 0:01:26]} 0-1


[Site "https://www.chess.com"]

[Event "Titled Tuesday Blitz March 29 Early 2022"]
[White "Meissner, Felix"]
[Black "Hartikainen, Jarmo"]
[WhiteFideId "24671827"]
[BlackFideId "503134"]
[WhiteElo "2350"]
[BlackElo "2071"]
[Result "1-0"]
[Round "01"]
[TimeControl "180+1"]
[Date "2022.03.30"]
[WhiteClock "0:01:38"]
[BlackClock "0:00:02"]

1. e4 {[%clk 0:03:00]}  c5 {[%clk 0:02:59]} 2. Nf3 {[%clk 0:03:00]}  Nc6 {[%clk 0:02:59]} 3. Bb5 {[%clk 0:02:59]}  g6 {[%clk 0:02:58]} 4. Bxc6 {[%clk 0:02:58]}  dxc6 {[%clk 0:02:58]} 5. h3 {[%clk 0:02:57]}  Bg7 {[%clk 0:02:57]} 6. d3 {[%clk 0:02:57]}  e5 {[%clk 0:02:57]} 7. Be3 {[%clk 0:02:54]}  b6 {[%clk 0:02:57]} 8. Qd2 {[%clk 0:02:55]}  h6 {[%clk 0:02:57]} 9. Qc3 {[%clk 0:02:55]}  Qc7 {[%clk 0:02:31]} 10. Nbd2 {[%clk 0:02:52]}  Be6 {[%clk 0:02:21]} 11. a3 {[%clk 0:02:52]}  Ne7 {[%clk 0:02:18]} 12. b4 {[%clk 0:02:49]}  cxb4 {[%clk 0:02:14]} 13. axb4 {[%clk 0:02:50]}  O-O {[%clk 0:02:13]} 14. b5 {[%clk 0:02:47]}  Rfc8 {[%clk 0:02:03]} 15. bxc6 {[%clk 0:02:43]}  Nxc6 {[%clk 0:01:58]} 16. O-O {[%clk 0:02:39]}  Nd4 {[%clk 0:01:45]} 17. Bxd4 {[%clk 0:02:34]}  exd4 {[%clk 0:01:43]} 18. Qxc7 {[%clk 0:02:33]}  Rxc7 {[%clk 0:01:43]} 19. Rfc1 {[%clk 0:02:33]}  Rac8 {[%clk 0:01:37]} 20. Ne1 {[%clk 0:02:32]}  Bf8 {[%clk 0:01:19]} 21. Ra4 {[%clk 0:02:27]}  a5 {[%clk 0:01:17]} 22. Rxd4 {[%clk 0:02:23]}  Bb4 {[%clk 0:01:10]} 23. Ndf3 {[%clk 0:02:19]}  Ba3 {[%clk 0:00:51]} 24. Rb1 {[%clk 0:02:17]}  Ba2 {[%clk 0:00:49]} 25. Rxb6 {[%clk 0:02:13]}  Bc5 {[%clk 0:00:48]} 26. Rdd6 {[%clk 0:02:12]}  Bxb6 {[%clk 0:00:44]} 27. Rxb6 {[%clk 0:02:12]}  Rxc2 {[%clk 0:00:37]} 28. Nxc2 {[%clk 0:02:11]}  Rxc2 {[%clk 0:00:38]} 29. Ra6 {[%clk 0:02:11]}  Rc1+ {[%clk 0:00:37]} 30. Kh2 {[%clk 0:02:10]}  Bb1 {[%clk 0:00:37]} 31. Ne5 {[%clk 0:02:06]}  Rd1 {[%clk 0:00:34]} 32. Rxa5 {[%clk 0:02:04]}  Bxd3 {[%clk 0:00:34]} 33. Rd5 {[%clk 0:02:04]}  Bc2 {[%clk 0:00:34]} 34. Rxd1 {[%clk 0:02:04]}  Bxd1 {[%clk 0:00:34]} 35. f3 {[%clk 0:02:04]}  Kg7 {[%clk 0:00:34]} 36. Kg3 {[%clk 0:02:04]}  f6 {[%clk 0:00:34]} 37. Nd3 {[%clk 0:02:02]}  Be2 {[%clk 0:00:33]} 38. Nb4 {[%clk 0:02:01]}  Bc4 {[%clk 0:00:32]} 39. Kf2 {[%clk 0:02:01]}  Kf7 {[%clk 0:00:31]} 40. Ke3 {[%clk 0:02:01]}  Ke6 {[%clk 0:00:30]} 41. h4 {[%clk 0:02:00]}  g5 {[%clk 0:00:28]} 42. g3 {[%clk 0:01:58]}  gxh4 {[%clk 0:00:28]} 43. gxh4 {[%clk 0:01:59]}  f5 {[%clk 0:00:28]} 44. Kf4 {[%clk 0:01:55]}  fxe4 {[%clk 0:00:27]} 45. fxe4 {[%clk 0:01:56]}  Be2 {[%clk 0:00:22]} 46. Nc2 {[%clk 0:01:56]}  Kf6 {[%clk 0:00:20]} 47. Nd4 {[%clk 0:01:55]}  Bd1 {[%clk 0:00:20]} 48. e5+ {[%clk 0:01:55]}  Kg6 {[%clk 0:00:18]} 49. Nf5 {[%clk 0:01:53]}  Bc2 {[%clk 0:00:16]} 50. Ng3 {[%clk 0:01:53]}  Bb3 {[%clk 0:00:15]} 51. Ke3 {[%clk 0:01:53]}  Be6 {[%clk 0:00:15]} 52. Kd4 {[%clk 0:01:53]}  Kf7 {[%clk 0:00:15]} 53. Kc5 {[%clk 0:01:53]}  Ke7 {[%clk 0:00:15]} 54. Kd4 {[%clk 0:01:52]}  Bg4 {[%clk 0:00:14]} 55. Ne4 {[%clk 0:01:51]}  h5 {[%clk 0:00:12]} 56. Nf6 {[%clk 0:01:48]}  Bd1 {[%clk 0:00:10]} 57. Nd5+ {[%clk 0:01:46]}  Ke6 {[%clk 0:00:09]} 58. Ne3 {[%clk 0:01:47]}  Bf3 {[%clk 0:00:07]} 59. Nf1 {[%clk 0:01:41]}  Bb7 {[%clk 0:00:06]} 60. Ng3 {[%clk 0:01:38]}  Bf3 {[%clk 0:00:06]} 61. Ke3 {[%clk 0:01:38]}  Bg4 {[%clk 0:00:05]} 62. Kf4 {[%clk 0:01:38]}  Bd1 {[%clk 0:00:05]} 63. Ne4 {[%clk 0:01:38]}  Bc2 {[%clk 0:00:02]} 64. Ng5+ {[%clk 0:01:38]} 1-0


[Site "https://www.chess.com"]

[Event "Titled Tuesday Blitz March 29 Early 2022"]
[White "Mikhailovsky, Vladimir"]
[Black "Vusatiuk, Vladimir"]
[WhiteFideId "34105414"]
[BlackFideId "14118610"]
[WhiteElo "2371"]
[BlackElo "2157"]
[Result "0-1"]
[Round "01"]
[TimeControl "180+1"]
[Date "2022.03.30"]
[WhiteClock "0:00:08"]
[BlackClock "0:00:09"]

1. e4 {[%clk 0:02:56]}  c5 {[%clk 0:02:58]} 2. Nf3 {[%clk 0:02:56]}  Nc6 {[%clk 0:02:58]} 3. Bb5 {[%clk 0:02:51]}  g6 {[%clk 0:02:57]} 4. Bxc6 {[%clk 0:02:50]}  bxc6 {[%clk 0:02:53]} 5. d3 {[%clk 0:02:51]}  Bg7 {[%clk 0:02:52]} 6. O-O {[%clk 0:02:51]}  d6 {[%clk 0:02:39]} 7. h3 {[%clk 0:02:47]}  e5 {[%clk 0:02:35]} 8. Nbd2 {[%clk 0:02:42]}  Ne7 {[%clk 0:02:31]} 9. Nc4 {[%clk 0:02:42]}  O-O {[%clk 0:02:30]} 10. a4 {[%clk 0:02:41]}  h6 {[%clk 0:02:24]} 11. Re1 {[%clk 0:02:40]}  Be6 {[%clk 0:02:21]} 12. b3 {[%clk 0:02:39]}  f5 {[%clk 0:02:19]} 13. exf5 {[%clk 0:02:33]}  gxf5 {[%clk 0:02:14]} 14. Rb1 {[%clk 0:02:08]}  Kh7 {[%clk 0:02:01]} 15. Nfxe5 {[%clk 0:01:20]}  dxe5 {[%clk 0:01:58]} 16. Nxe5 {[%clk 0:01:21]}  Nd5 {[%clk 0:01:04]} 17. Qf3 {[%clk 0:00:59]}  Qd6 {[%clk 0:00:51]} 18. Bb2 {[%clk 0:00:49]}  Rae8 {[%clk 0:00:50]} 19. Nc4 {[%clk 0:00:45]}  Qc7 {[%clk 0:00:47]} 20. Be5 {[%clk 0:00:43]}  Bxe5 {[%clk 0:00:43]} 21. Rxe5 {[%clk 0:00:44]}  Bc8 {[%clk 0:00:40]} 22. Rbe1 {[%clk 0:00:41]}  Rxe5 {[%clk 0:00:39]} 23. Rxe5 {[%clk 0:00:42]}  Qg7 {[%clk 0:00:34]} 24. Re1 {[%clk 0:00:19]}  f4 {[%clk 0:00:31]} 25. Re5 {[%clk 0:00:16]}  Rg8 {[%clk 0:00:18]} 26. Qe4+ {[%clk 0:00:15]}  Qg6 {[%clk 0:00:16]} 27. Nd6 {[%clk 0:00:12]}  Qxe4 {[%clk 0:00:16]} 28. dxe4 {[%clk 0:00:13]}  Bxh3 {[%clk 0:00:14]} 29. Kh2 {[%clk 0:00:07]}  Bxg2 {[%clk 0:00:09]} 30. exd5 {[%clk 0:00:08]}  Bxd5 {[%clk 0:00:08]} 31. Ne8 {[%clk 0:00:04]}  Rg2+ {[%clk 0:00:07]} 32. Kh3 {[%clk 0:00:04]}  Rxf2 {[%clk 0:00:07]} 33. Nf6+ {[%clk 0:00:05]}  Kg6 {[%clk 0:00:08]} 34. Nxd5 {[%clk 0:00:04]}  cxd5 {[%clk 0:00:08]} 35. c4 {[%clk 0:00:03]}  dxc4 {[%clk 0:00:06]} 36. bxc4 {[%clk 0:00:04]}  Rc2 {[%clk 0:00:04]} 37. Rxc5 {[%clk 0:00:04]}  f3 {[%clk 0:00:04]} 38. Kg3 {[%clk 0:00:05]}  f2 {[%clk 0:00:05]} 39. Kg2 {[%clk 0:00:05]}  h5 {[%clk 0:00:04]} 40. Rc8 {[%clk 0:00:05]}  h4 {[%clk 0:00:03]} 41. c5 {[%clk 0:00:02]}  h3+ {[%clk 0:00:03]} 42. Kf1 {[%clk 0:00:02]}  h2 {[%clk 0:00:03]} 43. Rh8 {[%clk 0:00:03]}  Rc1+ {[%clk 0:00:03]} 44. Kg2 {[%clk 0:00:02]}  h1=Q+ {[%clk 0:00:03]} 45. Rxh1 {[%clk 0:00:03]}  Rxh1 {[%clk 0:00:03]} 46. Kxf2 {[%clk 0:00:02]}  Rh2+ {[%clk 0:00:03]} 47. Ke3 {[%clk 0:00:03]}  Rc2 {[%clk 0:00:04]} 48. Kd4 {[%clk 0:00:04]}  Kf6 {[%clk 0:00:03]} 49. Kd5 {[%clk 0:00:04]}  Ke7 {[%clk 0:00:03]} 50. Kc6 {[%clk 0:00:05]}  Kd8 {[%clk 0:00:04]} 51. a5 {[%clk 0:00:06]}  Rb2 {[%clk 0:00:04]} 52. a6 {[%clk 0:00:06]}  Kc8 {[%clk 0:00:05]} 53. Kd6 {[%clk 0:00:06]}  Rb3 {[%clk 0:00:06]} 54. c6 {[%clk 0:00:06]}  Ra3 {[%clk 0:00:07]} 55. Kc5 {[%clk 0:00:07]}  Rxa6 {[%clk 0:00:07]} 56. Kb5 {[%clk 0:00:08]}  Rb6+ {[%clk 0:00:08]} 57. Kc5 {[%clk 0:00:08]}  Kc7 {[%clk 0:00:09]} 0-1


[Site "https://www.chess.com"]